fUST/lending_fUST_20250626
["ID","MTS","AMOUNT","RATE_DAILY","PERIOD"]
[367805576,1750933852141,-958.7,0.00017808,2]
[367805578,1750933852150,-460.0,0.00017808,2]
[367805580,1750933852160,-460.0,0.00017808,2]
[367805582,1750933852170,-572.45,0.00017808,2]
[367805584,1750933852180,-460.0,0.00017808,2]
[367805586,1750933852189,-460.0,0.00017808,2]
[367805588,1750933852198,-460.0,0.00017808,2]
[367805590,1750933852207,-460.0,0.00017808,2]
[367805592,1750933852218,-1002.89,0.00017808,2]
[367805594,1750933852226,-460.0,0.00017808,2]
[367805596,1750933852235,-460.0,0.00017808,2]
[367805598,1750933852245,-460.0,0.00017808,2]
[367805600,1750933852253,-739.13,0.00017808,2]
[367805602,1750933852262,-460.0,0.00017808,2]
[367805604,1750933852272,-460.0,0.00017808,2]
[367805605,1750933852280,-1427.44,0.00017808,2]
[367805608,1750933852292,-460.0,0.00017808,2]
[367805609,1750933852301,-370.80919601,0.00017808,2]
[367805611,1750933852310,-1553.5,0.00017808,2]
[367805614,1750933852320,-1338.84,0.00017808,2]
[367805615,1750933852331,-460.0,0.00017808,2]
[367805617,1750933852341,-460.0,0.00017808,2]
[367805619,1750933852350,-460.0,0.00017808,2]
[367805621,1750933852359,-460.0,0.00017808,2]
[367805623,1750933852368,-1072.36,0.00017808,2]
[367805625,1750933852377,-633.4,0.00017808,2]
[367805627,1750933852387,-460.0,0.00017808,2]
[367805630,1750933852399,-460.0,0.00017808,2]
[367805632,1750933852408,-1714.32,0.00017808,2]
[367805633,1750933852417,-460.0,0.00017808,2]
[367805635,1750933852426,-460.0,0.00017808,2]
[367805637,1750933852435,-460.0,0.00017808,2]
[367805640,1750933852445,-460.0,0.00017808,2]
[367805642,1750933852455,-791.06,0.00017808,2]
[367805644,1750933852464,-484.13,0.00017808,2]
[367805645,1750933852473,-460.0,0.00017808,2]
[367805647,1750933852481,-738.04,0.00017808,2]
[367805649,1750933852491,-1004.53964016,0.00017886,2]
[367805651,1750933852500,-11175.271891,0.00017901,2]
[367805653,1750933852509,-245.6856227,0.00017916,2]
[367805655,1750933852518,-500.55881292,0.00017916,2]
[367805657,1750933852527,-1000.0,0.0001796,2]
[367805659,1750933852536,-420.0,0.00017963,2]
[367805661,1750933852545,-420.0,0.00017963,2]
[367805663,1750933852555,-207.15989795,0.00018,2]
[367805665,1750933852564,-2331.10469927,0.00018003,2]
[367805667,1750933852573,-160.0,0.00018017,2]
[367805669,1750933852583,-160.0,0.00018017,2]
[367805671,1750933852593,-160.0,0.00018017,2]
[367805673,1750933852602,-425.22527846,0.00018017,2]
[367805675,1750933852611,-12560.17507789,0.00018017,2]
[367805677,1750933852621,-160.0,0.00018017,2]
[367805679,1750933852630,-160.0,0.00018017,2]
[367805681,1750933852639,-846.92323443,0.00018017,2]
[367805683,1750933852649,-213.72380786,0.00018017,2]
[367805685,1750933852658,-160.0,0.00018017,2]
[367805687,1750933852668,-524.25751634,0.00018017,2]
[367805690,1750933852678,-160.0,0.00018017,2]
[367805692,1750933852688,-160.0,0.00018017,2]
[367805694,1750933852697,-230.24506774,0.00018017,2]
[367805695,1750933852706,-836.92866116,0.00018017,2]
[367805698,1750933852716,-1000.0,0.00018029,2]
[367805700,1750933852727,-151.0,0.00018082,2]
[367805702,1750933852736,-151.0,0.00018082,2]
[367805703,1750933852746,-151.0,0.00018082,2]
[367805705,1750933852756,-415.06,0.00018082,2]
[367805707,1750933852765,-463.41,0.00018082,2]
[367805709,1750933852775,-460.0,0.00018082,2]
[367805711,1750933852784,-591.06,0.00018082,2]
[367805713,1750933852793,-460.0,0.00018082,2]
[367805715,1750933852803,-460.0,0.00018082,2]
[367805717,1750933852812,-460.0,0.00018082,2]
[367805719,1750933852821,-460.0,0.00018082,2]
[367805721,1750933852831,-460.0,0.00018082,2]
[367805723,1750933852840,-460.0,0.00018082,2]
[367805725,1750933852850,-1441.7,0.00018082,2]
[367805727,1750933852859,-460.0,0.00018082,2]
[367805729,1750933852868,-460.0,0.00018082,2]
[367805731,1750933852877,-460.0,0.00018082,2]
[367805733,1750933852886,-460.0,0.00018082,2]
[367805735,1750933852895,-460.0,0.00018082,2]
[367805737,1750933852904,-460.0,0.00018082,2]
[367805739,1750933852913,-460.0,0.00018082,2]
[367805741,1750933852922,-460.0,0.00018082,2]
[367805743,1750933852931,-460.0,0.00018082,2]
[367805745,1750933852941,-460.0,0.00018082,2]
[367805747,1750933852951,-460.0,0.00018082,2]
[367805749,1750933852960,-1648.71,0.00018082,2]
[367805751,1750933852969,-460.0,0.00018082,2]
[367805753,1750933852978,-460.0,0.00018082,2]
[367805755,1750933852988,-1081.94,0.00018082,2]
[367805757,1750933852997,-460.0,0.00018082,2]
[367805759,1750933853006,-460.0,0.00018082,2]
[367805761,1750933853016,-518.88,0.00018082,2]
[367805763,1750933853025,-460.0,0.00018082,2]
[367805765,1750933853035,-460.0,0.00018082,2]
[367805767,1750933853045,-460.0,0.00018082,2]
[367805769,1750933853055,-815.12,0.00018082,2]
[367805771,1750933853065,-460.0,0.00018082,2]
[367805773,1750933853075,-460.0,0.00018082,2]
[367805775,1750933853084,-460.0,0.00018082,2]
[367805777,1750933853093,-460.0,0.00018082,2]
[367805779,1750933853103,-460.0,0.00018082,2]
[367805781,1750933853111,-460.0,0.00018082,2]
[367805783,1750933853120,-556.41,0.00018082,2]
[367805785,1750933853130,-460.0,0.00018082,2]
[367805787,1750933853139,-1801.03,0.00018082,2]
[367805789,1750933853148,-1794.47,0.00018082,2]
[367805791,1750933853157,-460.0,0.00018082,2]
[367805793,1750933853167,-460.0,0.00018082,2]
[367805795,1750933853175,-1099.8,0.00018082,2]
[367805797,1750933853184,-612.7,0.00018082,2]
[367805799,1750933853193,-460.0,0.00018082,2]
[367805801,1750933853203,-2903.12,0.00018082,2]
[367805803,1750933853212,-460.0,0.00018082,2]
[367805805,1750933853221,-1414.34,0.00018082,2]
[367805807,1750933853230,-724.47,0.00018082,2]
[367805809,1750933853240,-460.0,0.00018082,2]
[367805811,1750933853249,-463.24,0.00018082,2]
[367805813,1750933853258,-3629.9,0.00018082,2]
[367805815,1750933853268,-1491.13,0.00018082,2]
[367805817,1750933853277,-460.0,0.00018082,2]
[367805819,1750933853285,-3220.69,0.00018082,2]
[367805821,1750933853295,-958.7,0.00018082,2]
[367805823,1750933853304,-460.0,0.00018082,2]
[367805825,1750933853314,-460.0,0.00018082,2]
[367805827,1750933853323,-572.45,0.00018082,2]
[367805829,1750933853332,-538.77967261,0.00018082,2]
[367805831,1750933853341,-460.0,0.00018082,2]
[367805833,1750933853350,-460.0,0.00018082,2]
[367805835,1750933853359,-460.0,0.00018082,2]
[367805837,1750933853368,-1002.89,0.00018082,2]
[367805839,1750933853377,-460.0,0.00018082,2]
[367805841,1750933853386,-460.0,0.00018082,2]
[367805843,1750933853395,-460.0,0.00018082,2]
[367805845,1750933853403,-739.13,0.00018082,2]
[367805847,1750933853412,-460.0,0.00018082,2]
[367805849,1750933853421,-460.0,0.00018082,2]
[367805851,1750933853430,-1427.44,0.00018082,2]
[367805852,1750933853439,-460.0,0.00018082,2]
[367805854,1750933853448,-1553.5,0.00018082,2]
[367805856,1750933853457,-1338.84,0.00018082,2]
[367805858,1750933853467,-460.0,0.00018082,2]
[367805860,1750933853476,-460.0,0.00018082,2]
[367805862,1750933853485,-460.0,0.00018082,2]
[367805864,1750933853495,-460.0,0.00018082,2]
[367805866,1750933853504,-1072.36,0.00018082,2]
[367805868,1750933853514,-633.4,0.00018082,2]
[367805870,1750933853523,-460.0,0.00018082,2]
[367805872,1750933853532,-460.0,0.00018082,2]
[367805874,1750933853542,-1714.32,0.00018082,2]
[367805876,1750933853551,-460.0,0.00018082,2]
[367805878,1750933853560,-460.0,0.00018082,2]
[367805880,1750933853569,-460.0,0.00018082,2]
[367805882,1750933853578,-460.0,0.00018082,2]
[367805884,1750933853588,-791.06,0.00018082,2]
[367805886,1750933853596,-484.13,0.00018082,2]
[367805888,1750933853605,-460.0,0.00018082,2]
[367805890,1750933853615,-738.04,0.00018082,2]
[367805892,1750933853624,-166.6693084,0.00018082,2]
[367805894,1750933853634,-501.01948852,0.00018097,2]
[367805896,1750933853643,-1000.0,0.00018097,2]
[367805898,1750933853652,-1000.0,0.00018097,2]
[367805908,1750933853662,-798.58513118,0.00018097,2]
[367805911,1750933853757,-1000.0,0.00018097,2]
[367805913,1750933853767,-1000.0,0.00018097,2]
[367805915,1750933853776,-504.18410988,0.00018169,2]
[367805917,1750933853785,-1000.0,0.00018169,2]
[367805919,1750933853795,-2331.10469927,0.00018279,2]
[367805921,1750933853805,-265.389616,0.00018356,2]
[367805923,1750933853814,-463.41,0.00018356,2]
[367805925,1750933853823,-460.0,0.00018356,2]
[367805927,1750933853832,-591.06,0.00018356,2]
[367805929,1750933853841,-460.0,0.00018356,2]
[367805931,1750933853850,-460.0,0.00018356,2]
[367805933,1750933853859,-460.0,0.00018356,2]
[367805935,1750933853869,-460.0,0.00018356,2]
[367805937,1750933853878,-460.0,0.00018356,2]
[367805939,1750933853887,-460.0,0.00018356,2]
[367805941,1750933853896,-1441.7,0.00018356,2]
[367805943,1750933853905,-460.0,0.00018356,2]
[367805945,1750933853914,-460.0,0.00018356,2]
[367805947,1750933853924,-460.0,0.00018356,2]
[367805949,1750933853933,-412.11212823,0.00018356,2]
[367805951,1750933853942,-460.0,0.00018356,2]
[367805953,1750933853951,-374.75044729,0.00018356,2]
[367805955,1750933853960,-460.0,0.00018356,2]
[367805957,1750933853970,-460.0,0.00018356,2]
[367805959,1750933853979,-460.0,0.00018356,2]
[367805961,1750933853990,-599.63577361,0.00018356,2]
[367805963,1750933853999,-460.0,0.00018356,2]
[367805965,1750933854008,-1648.71,0.00018356,2]
[367805967,1750933854017,-460.0,0.00018356,2]
[367805969,1750933854026,-460.0,0.00018356,2]
[367805971,1750933854035,-1081.94,0.00018356,2]
[367805973,1750933854045,-460.0,0.00018356,2]
[367805975,1750933854054,-460.0,0.00018356,2]
[367805978,1750933854064,-518.88,0.00018356,2]
[367805980,1750933854073,-460.0,0.00018356,2]
[367805982,1750933854083,-460.0,0.00018356,2]
[367805984,1750933854092,-460.0,0.00018356,2]
[367805986,1750933854102,-815.12,0.00018356,2]
[367805987,1750933854111,-460.0,0.00018356,2]
[367805989,1750933854120,-460.0,0.00018356,2]
[367805991,1750933854129,-460.0,0.00018356,2]
[367805993,1750933854138,-460.0,0.00018356,2]
[367805995,1750933854148,-460.0,0.00018356,2]
[367805997,1750933854157,-460.0,0.00018356,2]
[367805999,1750933854167,-556.41,0.00018356,2]
[367806001,1750933854178,-460.0,0.00018356,2]
[367806003,1750933854187,-1801.03,0.00018356,2]
[367806005,1750933854197,-1794.47,0.00018356,2]
[367806007,1750933854206,-460.0,0.00018356,2]
[367806009,1750933854217,-460.0,0.00018356,2]
[367806011,1750933854226,-1099.8,0.00018356,2]
[367806013,1750933854235,-612.7,0.00018356,2]
[367806015,1750933854246,-460.0,0.00018356,2]
[367806017,1750933854255,-2903.12,0.00018356,2]
[367806019,1750933854264,-460.0,0.00018356,2]
[367806021,1750933854273,-1414.34,0.00018356,2]
[367806023,1750933854283,-724.47,0.00018356,2]
[367806025,1750933854292,-460.0,0.00018356,2]
[367806027,1750933854301,-463.24,0.00018356,2]
[367806029,1750933854310,-3629.9,0.00018356,2]
[367806031,1750933854319,-1491.13,0.00018356,2]
[367806033,1750933854328,-460.0,0.00018356,2]
[367806035,1750933854337,-3220.69,0.00018356,2]
[367806037,1750933854346,-958.7,0.00018356,2]
[367806039,1750933854355,-460.0,0.00018356,2]
[367806041,1750933854364,-572.45,0.00018356,2]
[367806043,1750933854373,-460.0,0.00018356,2]
[367806045,1750933854382,-460.0,0.00018356,2]
[367806047,1750933854391,-460.0,0.00018356,2]
[367806049,1750933854399,-1002.89,0.00018356,2]
[367806051,1750933854408,-460.0,0.00018356,2]
[367806053,1750933854417,-460.0,0.00018356,2]
[367806055,1750933854426,-460.0,0.00018356,2]
[367806057,1750933854435,-739.13,0.00018356,2]
[367806059,1750933854445,-460.0,0.00018356,2]
[367806061,1750933854456,-460.0,0.00018356,2]
[367806064,1750933854474,-1427.44,0.00018356,2]
[367806067,1750933854489,-460.0,0.00018356,2]
[367806069,1750933854506,-1338.84,0.00018356,2]
[367806072,1750933854522,-1553.5,0.00018356,2]
[367806075,1750933854538,-460.0,0.00018356,2]
[367806078,1750933854555,-460.0,0.00018356,2]
[367806080,1750933854570,-460.0,0.00018356,2]
[367806083,1750933854584,-460.0,0.00018356,2]
[367806085,1750933854601,-1072.36,0.00018356,2]
[367806088,1750933854616,-633.4,0.00018356,2]
[367806090,1750933854629,-382.28871113,0.00018356,2]
[367806093,1750933854644,-1714.32,0.00018356,2]
[367806096,1750933854661,-460.0,0.00018356,2]
[367806098,1750933854675,-460.0,0.00018356,2]
[367806101,1750933854693,-460.0,0.00018356,2]
[367806103,1750933854707,-460.0,0.00018356,2]
[367806106,1750933854719,-791.06,0.00018356,2]
[367806108,1750933854736,-484.13,0.00018356,2]
[367806111,1750933854750,-460.0,0.00018356,2]
[367806113,1750933854763,-738.04,0.00018356,2]
[367806116,1750933854778,-153.56387952,0.00018525,2]
[367806118,1750933854792,-2331.10469927,0.00018555,2]
[367806121,1750933854804,-500.0,0.00018577,2]
[367806123,1750933854817,-151.0,0.0001863,2]
[367806125,1750933854829,-151.0,0.0001863,2]
[367806128,1750933854842,-151.0,0.0001863,2]
[367806130,1750933854855,-463.41,0.0001863,2]
[367806132,1750933854867,-460.0,0.0001863,2]
[367806135,1750933854880,-591.06,0.0001863,2]
[367806137,1750933854892,-460.0,0.0001863,2]
[367806139,1750933854905,-460.0,0.0001863,2]
[367806142,1750933854918,-460.0,0.0001863,2]
[367806144,1750933854929,-460.0,0.0001863,2]
[367806146,1750933854942,-460.0,0.0001863,2]
[367806149,1750933854956,-195.47286136,0.0001863,2]
[367806151,1750933854969,-1441.7,0.0001863,2]
[367806154,1750933854981,-460.0,0.0001863,2]
[367806156,1750933854994,-599.19020435,0.0001863,2]
[367806158,1750933855008,-460.0,0.0001863,2]
[367806161,1750933855020,-460.0,0.0001863,2]
[367806163,1750933855033,-460.0,0.0001863,2]
[367806165,1750933855045,-460.0,0.0001863,2]
[367806168,1750933855058,-460.0,0.0001863,2]
[367806170,1750933855069,-460.0,0.0001863,2]
[367806172,1750933855082,-1648.71,0.0001863,2]
[367806174,1750933855094,-525.89611994,0.0001863,2]
[367806177,1750933855107,-395.48,0.0001863,2]
[367806179,1750933855119,-1081.94,0.0001863,2]
[367806181,1750933855132,-460.0,0.0001863,2]
[367806182,1750933855145,-460.0,0.0001863,2]
[367806183,1750933855157,-518.88,0.0001863,2]
[367806184,1750933855170,-460.0,0.0001863,2]
[367806185,1750933855182,-460.0,0.0001863,2]
[367806186,1750933855197,-460.0,0.0001863,2]
[367806187,1750933855209,-815.12,0.0001863,2]
[367806188,1750933855221,-460.0,0.0001863,2]
[367806189,1750933855234,-460.0,0.0001863,2]
[367806190,1750933855246,-460.0,0.0001863,2]
[367806191,1750933855259,-460.0,0.0001863,2]
[367806192,1750933855272,-460.0,0.0001863,2]
[367806193,1750933855284,-460.0,0.0001863,2]
[367806195,1750933855297,-556.41,0.0001863,2]
[367806196,1750933855310,-460.0,0.0001863,2]
[367806198,1750933855323,-1801.03,0.0001863,2]
[367806200,1750933855336,-1794.47,0.0001863,2]
[367806203,1750933855350,-460.0,0.0001863,2]
[367806205,1750933855363,-1099.8,0.0001863,2]
[367806207,1750933855376,-612.7,0.0001863,2]
[367806210,1750933855389,-460.0,0.0001863,2]
[367806212,1750933855402,-2903.12,0.0001863,2]
[367806215,1750933855415,-460.0,0.0001863,2]
[367806217,1750933855429,-1414.34,0.0001863,2]
[367806219,1750933855441,-724.47,0.0001863,2]
[367806221,1750933855451,-460.0,0.0001863,2]
[367806223,1750933855460,-463.24,0.0001863,2]
[367806225,1750933855470,-3629.9,0.0001863,2]
[367806243,1750933855602,-1491.13,0.0001863,2]
[367806246,1750933855643,-460.0,0.0001863,2]
[367806248,1750933855653,-3220.69,0.0001863,2]
[367806250,1750933855662,-958.7,0.0001863,2]
[367806252,1750933855671,-151.0,0.0001863,2]
[367806254,1750933855681,-460.0,0.0001863,2]
[367806256,1750933855690,-572.45,0.0001863,2]
[367806258,1750933855700,-460.0,0.0001863,2]
[367806260,1750933855709,-460.0,0.0001863,2]
[367806262,1750933855718,-460.0,0.0001863,2]
[367806264,1750933855727,-1002.89,0.0001863,2]
[367806266,1750933855737,-460.0,0.0001863,2]
[367806268,1750933855746,-460.0,0.0001863,2]
[367806270,1750933855755,-460.0,0.0001863,2]
[367806272,1750933855765,-739.13,0.0001863,2]
[367806274,1750933855775,-153.44296881,0.0001863,2]
[367806276,1750933855784,-460.0,0.0001863,2]
[367806278,1750933855794,-1427.44,0.0001863,2]
[367806280,1750933855803,-460.0,0.0001863,2]
[367806282,1750933855812,-1338.84,0.0001863,2]
[367806284,1750933855822,-1553.5,0.0001863,2]
[367806286,1750933855831,-151.0,0.0001863,2]
[367806288,1750933855840,-460.0,0.0001863,2]
[367806290,1750933855850,-460.0,0.0001863,2]
[367806292,1750933855859,-460.0,0.0001863,2]
[367806294,1750933855869,-460.0,0.0001863,2]
[367806296,1750933855879,-1072.36,0.0001863,2]
[367806298,1750933855888,-633.4,0.0001863,2]
[367806300,1750933855898,-151.0,0.0001863,2]
[367806302,1750933855907,-1714.32,0.0001863,2]
[367806304,1750933855916,-460.0,0.0001863,2]
[367806306,1750933855926,-460.0,0.0001863,2]
[367806308,1750933855935,-460.0,0.0001863,2]
[367806310,1750933855945,-460.0,0.0001863,2]
[367806312,1750933855954,-791.06,0.0001863,2]
[367806314,1750933855964,-484.13,0.0001863,2]
[367806316,1750933855972,-460.0,0.0001863,2]
[367806318,1750933855981,-738.04,0.0001863,2]
[367806320,1750933855991,-168.0,0.00018644,2]
[367806322,1750933855999,-1500.0,0.00018645,2]
[367806324,1750933856008,-1500.0,0.00018645,2]
[367806326,1750933856018,-1500.0,0.00018645,2]
[367806328,1750933856027,-1627.19226716,0.00018645,2]
[367806330,1750933856035,-1002.78026123,0.00018717,2]
[367806332,1750933856045,-2331.10469927,0.00018831,2]
[367806334,1750933856054,-808.0,0.00018873,2]
[367806335,1750933856063,-1076.51811168,0.000189,2]
[367806337,1750933856073,-265.389616,0.00018904,2]
[367806339,1750933856083,-463.41,0.00018904,2]
[367806341,1750933856092,-460.0,0.00018904,2]
[367806343,1750933856101,-591.06,0.00018904,2]
[367806345,1750933856110,-460.0,0.00018904,2]
[367806347,1750933856119,-460.0,0.00018904,2]
[367806349,1750933856128,-460.0,0.00018904,2]
[367806351,1750933856137,-460.0,0.00018904,2]
[367806353,1750933856146,-1441.7,0.00018904,2]
[367806355,1750933856155,-460.0,0.00018904,2]
[367806357,1750933856168,-460.0,0.00018904,2]
[367806359,1750933856179,-460.0,0.00018904,2]
[367806361,1750933856188,-460.0,0.00018904,2]
[367806363,1750933856199,-460.0,0.00018904,2]
[367806365,1750933856208,-460.0,0.00018904,2]
[367806367,1750933856219,-1648.71,0.00018904,2]
[367806369,1750933856228,-1081.94,0.00018904,2]
[367806371,1750933856237,-460.0,0.00018904,2]
[367806373,1750933856248,-460.0,0.00018904,2]
[367806375,1750933856257,-518.88,0.00018904,2]
[367806377,1750933856267,-460.0,0.00018904,2]
[367806379,1750933856276,-460.0,0.00018904,2]
[367806381,1750933856285,-460.0,0.00018904,2]
[367806383,1750933856294,-815.12,0.00018904,2]
[367806385,1750933856303,-460.0,0.00018904,2]
[367806387,1750933856312,-418.01,0.00018904,2]
[367806389,1750933856322,-356.33013205,0.00018904,2]
[367806391,1750933856331,-460.0,0.00018904,2]
[367806393,1750933856340,-460.0,0.00018904,2]
[367806395,1750933856349,-460.0,0.00018904,2]
[367806397,1750933856358,-556.41,0.00018904,2]
[367806399,1750933856367,-460.0,0.00018904,2]
[367806401,1750933856376,-1801.03,0.00018904,2]
[367806403,1750933856386,-1794.47,0.00018904,2]
[367806405,1750933856395,-460.0,0.00018904,2]
[367806407,1750933856404,-1099.8,0.00018904,2]
[367806408,1750933856413,-612.7,0.00018904,2]
[367806410,1750933856422,-460.0,0.00018904,2]
[367806412,1750933856431,-2903.12,0.00018904,2]
[367806414,1750933856441,-460.0,0.00018904,2]
[367806416,1750933856450,-1414.34,0.00018904,2]
[367806418,1750933856459,-724.47,0.00018904,2]
[367806420,1750933856468,-460.0,0.00018904,2]
[367806422,1750933856478,-463.24,0.00018904,2]
[367806424,1750933856487,-3629.9,0.00018904,2]
[367806426,1750933856496,-1491.13,0.00018904,2]
[367806428,1750933856507,-556.1533956,0.00018904,2]
[367806430,1750933856516,-3220.69,0.00018904,2]
[367806432,1750933856526,-958.7,0.00018904,2]
[367806434,1750933856535,-460.0,0.00018904,2]
[367806436,1750933856544,-572.45,0.00018904,2]
[367806438,1750933856553,-460.0,0.00018904,2]
[367806440,1750933856562,-460.0,0.00018904,2]
[367806442,1750933856571,-460.0,0.00018904,2]
[367806444,1750933856580,-1002.89,0.00018904,2]
[367806446,1750933856589,-460.0,0.00018904,2]
[367806448,1750933856599,-460.0,0.00018904,2]
[367806450,1750933856608,-460.0,0.00018904,2]
[367806452,1750933856616,-151.0,0.00018904,2]
[367806454,1750933856626,-739.13,0.00018904,2]
[367806456,1750933856636,-460.0,0.00018904,2]
[367806458,1750933856646,-1427.44,0.00018904,2]
[367806460,1750933856655,-460.0,0.00018904,2]
[367806462,1750933856664,-1338.84,0.00018904,2]
[367806464,1750933856674,-1553.5,0.00018904,2]
[367806465,1750933856683,-460.0,0.00018904,2]
[367806467,1750933856692,-460.0,0.00018904,2]
[367806469,1750933856702,-460.0,0.00018904,2]
[367806471,1750933856712,-328.10923955,0.00018904,2]
[367806473,1750933856721,-1072.36,0.00018904,2]
[367806475,1750933856730,-633.4,0.00018904,2]
[367806477,1750933856740,-1714.32,0.00018904,2]
[367806479,1750933856749,-460.0,0.00018904,2]
[367806481,1750933856759,-460.0,0.00018904,2]
[367806483,1750933856768,-483.14,0.00018904,2]
[367806485,1750933856778,-460.0,0.00018904,2]
[367806487,1750933856787,-791.06,0.00018904,2]
[367806489,1750933856796,-484.13,0.00018904,2]
[367806491,1750933856806,-460.0,0.00018904,2]
[367806493,1750933856815,-738.04,0.00018904,2]
[367806495,1750933856825,-366.0585355,0.00019041,2]
[367806497,1750933856834,-2331.10469927,0.00019107,2]
[367806499,1750933856843,-168.0,0.00019162,2]
[367806501,1750933856852,-165.724098,0.00019178,2]
[367806503,1750933856862,-463.41,0.00019178,2]
[367806505,1750933856871,-460.0,0.00019178,2]
[367806507,1750933856880,-591.06,0.00019178,2]
[367806509,1750933856889,-460.0,0.00019178,2]
[367806511,1750933856899,-460.0,0.00019178,2]
[367806513,1750933856908,-460.0,0.00019178,2]
[367806515,1750933856918,-460.0,0.00019178,2]
[367806517,1750933856927,-1441.7,0.00019178,2]
[367806519,1750933856936,-460.0,0.00019178,2]
[367806521,1750933856945,-460.0,0.00019178,2]
[367806523,1750933856954,-460.0,0.00019178,2]
[367806525,1750933856963,-460.0,0.00019178,2]
[367806527,1750933856972,-460.0,0.00019178,2]
[367806529,1750933856981,-460.0,0.00019178,2]
[367806531,1750933856990,-1648.71,0.00019178,2]
[367806533,1750933856999,-1081.94,0.00019178,2]
[367806535,1750933857009,-506.24604461,0.00019178,2]
[367806537,1750933857018,-460.0,0.00019178,2]
[367806539,1750933857027,-518.88,0.00019178,2]
[367806541,1750933857037,-460.0,0.00019178,2]
[367806543,1750933857046,-460.0,0.00019178,2]
[367806545,1750933857055,-460.0,0.00019178,2]
[367806547,1750933857064,-815.12,0.00019178,2]
[367806549,1750933857075,-460.0,0.00019178,2]
[367806551,1750933857084,-460.0,0.00019178,2]
[367806553,1750933857094,-460.0,0.00019178,2]
[367806555,1750933857103,-460.0,0.00019178,2]
[367806557,1750933857112,-556.41,0.00019178,2]
[367806559,1750933857121,-460.0,0.00019178,2]
[367806561,1750933857130,-1801.03,0.00019178,2]
[367806563,1750933857140,-1794.47,0.00019178,2]
[367806565,1750933857150,-460.0,0.00019178,2]
[367806566,1750933857159,-1099.8,0.00019178,2]
[367806568,1750933857168,-612.7,0.00019178,2]
[367806570,1750933857177,-151.0,0.00019178,2]
[367806572,1750933857187,-151.0,0.00019178,2]
[367806574,1750933857196,-460.0,0.00019178,2]
[367806576,1750933857206,-2903.12,0.00019178,2]
[367806578,1750933857216,-460.0,0.00019178,2]
[367806580,1750933857225,-1414.34,0.00019178,2]
[367806582,1750933857234,-724.47,0.00019178,2]
[367806584,1750933857243,-460.0,0.00019178,2]
[367806586,1750933857252,-463.24,0.00019178,2]
[367806588,1750933857262,-3629.9,0.00019178,2]
[367806590,1750933857271,-1491.13,0.00019178,2]
[367806592,1750933857280,-3220.69,0.00019178,2]
[367806594,1750933857290,-958.7,0.00019178,2]
[367806596,1750933857299,-460.0,0.00019178,2]
[367806598,1750933857308,-572.45,0.00019178,2]
[367806600,1750933857317,-460.0,0.00019178,2]
[367806602,1750933857327,-460.0,0.00019178,2]
[367806604,1750933857336,-460.0,0.00019178,2]
[367806606,1750933857345,-1002.89,0.00019178,2]